[Event "*** Titled Tuesday 3|2 Blitz"]
[Site "Chess.com"]
[Date "2016.02.02"]
[Round "8"]
[White "Smirnov_Pavel"]
[Black "HovmoellerHest"]
[Result "1-0"]
[WhiteElo "2533"]
[BlackElo "2185"]
[TimeControl "180+2"]
[EndTime "12:44:27 PST"]
[Termination "Smirnov_Pavel won by resignation"]

1. e4 {[%clk 0:03:01.9]} 1... c5 {[%clk 0:03:01.1]} 2. Nf3 {[%clk 0:03:02.4]}
2... d6 {[%clk 0:03:01.7]} 3. d4 {[%clk 0:03:03.9]} 3... cxd4 {[%clk 0:03:03.1]}
4. Nxd4 {[%clk 0:03:05.2]} 4... Nf6 {[%clk 0:03:04.8]} 5. Nc3 {[%clk 0:03:06.8]}
5... a6 {[%clk 0:03:06.5]} 6. Bg5 {[%clk 0:03:07.5]} 6... e6 {[%clk 0:03:06.6]}
7. f4 {[%clk 0:03:07.5]} 7... Be7 {[%clk 0:03:07.7]} 8. Qf3 {[%clk 0:03:08.3]}
8... Qc7 {[%clk 0:03:08.6]} 9. O-O-O {[%clk 0:03:08.6]} 9... Nbd7 {[%clk
0:03:09.7]} 10. g4 {[%clk 0:03:08.4]} 10... b5 {[%clk 0:03:10.5]} 11. Bxf6
{[%clk 0:03:09.2]} 11... Nxf6 {[%clk 0:03:11.2]} 12. g5 {[%clk 0:03:10]} 12...
Nd7 {[%clk 0:03:12.5]} 13. f5 {[%clk 0:03:11]} 13... Bxg5+ {[%clk 0:03:13.5]}
14. Kb1 {[%clk 0:03:11.4]} 14... Ne5 {[%clk 0:03:14.8]} 15. Qh5 {[%clk
0:03:11.4]} 15... Qd8 {[%clk 0:03:15.9]} 16. Nxe6 {[%clk 0:03:09.7]} 16... Bxe6
{[%clk 0:03:16.3]} 17. fxe6 {[%clk 0:03:10.7]} 17... g6 {[%clk 0:03:17.7]} 18.
exf7+ {[%clk 0:03:10.4]} 18... Kxf7 {[%clk 0:03:19]} 19. Qe2 {[%clk 0:03:05.1]}
19... Kg7 {[%clk 0:03:20]} 20. Nd5 {[%clk 0:02:59.8]} 20... Rf8 {[%clk
0:03:05.8]} 21. Bg2 {[%clk 0:02:46.3]} 21... Ra7 {[%clk 0:03:00.5]} 22. Qe1
{[%clk 0:02:00.1]} 22... Nc4 {[%clk 0:02:28.2]} 23. b3 {[%clk 0:01:53.5]} 23...
Ne5 {[%clk 0:02:24.3]} 24. h4 {[%clk 0:01:53.2]} 24... Bf4 {[%clk 0:02:06.3]}
25. h5 {[%clk 0:01:48.6]} 25... g5 {[%clk 0:01:59.6]} 26. h6+ {[%clk 0:01:45]}
26... Kh8 {[%clk 0:01:54.6]} 27. Qb4 {[%clk 0:01:45.3]} 27... Rd7 {[%clk
0:01:35.3]} 28. Rhf1 {[%clk 0:01:44.9]} 28... Ng6 {[%clk 0:01:31]} 29. Bh3
{[%clk 0:01:40.7]} 29... Rdf7 {[%clk 0:01:22.8]} 30. Be6 {[%clk 0:01:39.5]}
30... Rb7 {[%clk 0:00:57]} 31. Nxf4 {[%clk 0:01:37.3]} 31... Nxf4 {[%clk
0:00:50.1]} 32. Rxd6 {[%clk 0:01:37.3]} 32... Nxe6 {[%clk 0:00:41.6]} 33. Rxd8
{[%clk 0:01:33]} 1-0

[Event "*** Titled Tuesday 3|2 Blitz"]
[Site "Chess.com"]
[Date "2016.02.02"]
[Round "8"]
[White "gmjoey1"]
[Black "AlexanderL"]
[Result "0-1"]
[WhiteElo "2479"]
[BlackElo "2589"]
[TimeControl "180+2"]
[EndTime "12:44:35 PST"]
[Termination "AlexanderL won by resignation"]

1. e4 {[%clk 0:03:01.9]} 1... e6 {[%clk 0:03:01.1]} 2. d4 {[%clk 0:03:02.1]}
2... d5 {[%clk 0:02:52.7]} 3. Nc3 {[%clk 0:03:04]} 3... Nf6 {[%clk 0:02:51]} 4.
Bg5 {[%clk 0:03:02.6]} 4... dxe4 {[%clk 0:02:50.8]} 5. Nxe4 {[%clk 0:02:53.9]}
5... Be7 {[%clk 0:02:51.8]} 6. Bxf6 {[%clk 0:02:54.2]} 6... gxf6 {[%clk
0:02:52.7]} 7. c3 {[%clk 0:02:47.3]} 7... f5 {[%clk 0:02:52.9]} 8. Ng3 {[%clk
0:02:47.6]} 8... c5 {[%clk 0:02:53.9]} 9. dxc5 {[%clk 0:02:47.5]} 9... Bxc5
{[%clk 0:02:54.5]} 10. Bb5+ {[%clk 0:02:33.8]} 10... Bd7 {[%clk 0:02:54.8]} 11.
Qe2 {[%clk 0:02:29.1]} 11... Qb6 {[%clk 0:02:53.1]} 12. Bxd7+ {[%clk 0:02:28.8]}
12... Nxd7 {[%clk 0:02:52.3]} 13. Nxf5 {[%clk 0:02:13.6]} 13... O-O-O {[%clk
0:02:50.1]} 14. Ng3 {[%clk 0:02:08.4]} 14... Ne5 {[%clk 0:02:40.7]} 15. Qxe5
{[%clk 0:01:02.3]} 15... Bxf2+ {[%clk 0:02:39.1]} 16. Kf1 {[%clk 0:01:02.7]}
16... Qxb2 {[%clk 0:02:38]} 17. Re1 {[%clk 0:00:41.8]} 17... Bxe1 {[%clk
0:02:31.6]} 18. Qxe1 {[%clk 0:00:43.7]} 18... Qc2 {[%clk 0:02:29.2]} 19. N1e2
{[%clk 0:00:26.4]} 19... Rd1 {[%clk 0:02:28.1]} 20. Kf2 {[%clk 0:00:28.3]} 20...
Rhd8 {[%clk 0:02:20.7]} 21. h4 {[%clk 0:00:18.3]} 21... Rxe1 {[%clk 0:02:19.9]}
22. Rxe1 {[%clk 0:00:20.2]} 22... Rd1 {[%clk 0:02:20.5]} 23. Rxd1 {[%clk
0:00:20.4]} 23... Qxd1 {[%clk 0:02:19.5]} 24. h5 {[%clk 0:00:22.3]} 24... Qa1
{[%clk 0:02:17.8]} 25. Ne4 {[%clk 0:00:22.8]} 25... Qxa2 {[%clk 0:02:13.7]} 26.
Nd6+ {[%clk 0:00:23.6]} 26... Kc7 {[%clk 0:02:14.3]} 27. Nxf7 {[%clk 0:00:24.8]}
27... Qd5 {[%clk 0:02:11.4]} 28. Nd4 {[%clk 0:00:22.1]} 28... e5 {[%clk
0:02:08]} 29. Nxe5 {[%clk 0:00:16.7]} 29... Qxe5 {[%clk 0:02:07.8]} 30. h6
{[%clk 0:00:13.8]} 30... Qf6+ {[%clk 0:02:08.4]} 31. Ke2 {[%clk 0:00:12.6]}
31... Qxh6 {[%clk 0:02:09.2]} 32. g4 {[%clk 0:00:13.2]} 32... Qg6 {[%clk
0:02:10]} 33. Kf3 {[%clk 0:00:13.4]} 33... a5 {[%clk 0:02:11.2]} 34. g5 {[%clk
0:00:13.8]} 34... a4 {[%clk 0:02:11.3]} 35. Kf4 {[%clk 0:00:14.8]} 35... Kb6
{[%clk 0:02:11.4]} 36. Nf3 {[%clk 0:00:12.6]} 36... a3 {[%clk 0:02:11.5]} 37.
Ne5 {[%clk 0:00:14.5]} 37... a2 {[%clk 0:02:04.8]} 0-1

[Event "*** Titled Tuesday 3|2 Blitz"]
[Site "Chess.com"]
[Date "2016.02.02"]
[Round "8"]
[White "Boryboy"]
[Black "BillieKimbah"]
[Result "0-1"]
[WhiteElo "2502"]
[BlackElo "2431"]
[TimeControl "180+2"]
[EndTime "12:45:10 PST"]
[Termination "BillieKimbah won by resignation"]

1. d4 {[%clk 0:03:01.9]} 1... d5 {[%clk 0:03:00.4]} 2. Nf3 {[%clk 0:03:02.3]}
2... Nf6 {[%clk 0:03:00.8]} 3. c4 {[%clk 0:03:03.1]} 3... c6 {[%clk 0:03:01.4]}
4. e3 {[%clk 0:03:02.9]} 4... Bf5 {[%clk 0:03:01.3]} 5. Nc3 {[%clk 0:03:03.6]}
5... e6 {[%clk 0:03:02.4]} 6. Nh4 {[%clk 0:03:03.1]} 6... Be4 {[%clk 0:03:03.3]}
7. f3 {[%clk 0:03:02.9]} 7... Bg6 {[%clk 0:03:03.9]} 8. Qb3 {[%clk 0:03:03.2]}
8... Qc7 {[%clk 0:03:04.5]} 9. Bd2 {[%clk 0:02:44.8]} 9... Be7 {[%clk 0:03:05]}
10. Nxg6 {[%clk 0:02:40]} 10... hxg6 {[%clk 0:03:05.3]} 11. g3 {[%clk
0:02:38.9]} 11... Nbd7 {[%clk 0:02:59.8]} 12. O-O-O {[%clk 0:02:39.5]} 12...
dxc4 {[%clk 0:02:58.7]} 13. Bxc4 {[%clk 0:02:39]} 13... a6 {[%clk 0:02:59.8]}
14. Be2 {[%clk 0:02:39.2]} 14... b5 {[%clk 0:02:54.9]} 15. Kb1 {[%clk
0:02:38.2]} 15... c5 {[%clk 0:02:54.7]} 16. Ne4 {[%clk 0:02:16.2]} 16... c4
{[%clk 0:02:53.5]} 17. Qc2 {[%clk 0:02:16.3]} 17... Nd5 {[%clk 0:02:48.1]} 18.
Rc1 {[%clk 0:02:12.7]} 18... O-O {[%clk 0:02:47.5]} 19. h4 {[%clk 0:02:12.1]}
19... f5 {[%clk 0:02:40.3]} 20. h5 {[%clk 0:01:59.6]} 20... g5 {[%clk
0:02:26.4]} 21. h6 {[%clk 0:01:42.7]} 21... g6 {[%clk 0:02:27]} 22. Nc3 {[%clk
0:01:29.5]} 22... Kh7 {[%clk 0:02:21.6]} 23. g4 {[%clk 0:01:25.9]} 23... Nxc3+
{[%clk 0:01:53.4]} 24. Bxc3 {[%clk 0:01:17.2]} 24... Rac8 {[%clk 0:01:53.6]} 25.
gxf5 {[%clk 0:01:14.9]} 25... exf5 {[%clk 0:01:54]} 26. e4 {[%clk 0:01:04.2]}
26... b4 {[%clk 0:01:48.2]} 27. Bd2 {[%clk 0:01:03.1]} 27... c3 {[%clk
0:01:49.4]} 28. bxc3 {[%clk 0:01:03.1]} 28... bxc3 {[%clk 0:01:45.8]} 29. Qxc3
{[%clk 0:00:58.4]} 29... Qg3 {[%clk 0:01:25.2]} 30. Qxc8 {[%clk 0:00:46.2]}
30... Rxc8 {[%clk 0:01:26.1]} 31. Rxc8 {[%clk 0:00:47.9]} 31... Qf2 {[%clk
0:01:26.8]} 32. Re1 {[%clk 0:00:43.1]} 32... fxe4 {[%clk 0:01:22.4]} 33. fxe4
{[%clk 0:00:34.5]} 33... Qxd4 {[%clk 0:01:22.4]} 34. Bc3 {[%clk 0:00:15.5]}
34... Qxe4+ {[%clk 0:01:22.8]} 35. Kb2 {[%clk 0:00:17]} 35... Qb7+ {[%clk
0:01:19.2]} 36. Kc2 {[%clk 0:00:16.5]} 36... Qxc8 {[%clk 0:01:19]} 37. Rf1
{[%clk 0:00:18.2]} 37... Bf6 {[%clk 0:01:18.6]} 0-1

[Event "*** Titled Tuesday 3|2 Blitz"]
[Site "Chess.com"]
[Date "2016.02.02"]
[Round "8"]
[White "stepanosinovsky"]
[Black "GMHess"]
[Result "0-1"]
[WhiteElo "2277"]
[BlackElo "2473"]
[TimeControl "180+2"]
[EndTime "12:45:14 PST"]
[Termination "GMHess won on time"]

1. e4 {[%clk 0:03:01.9]} 1... g6 {[%clk 0:03:01.9]} 2. d4 {[%clk 0:03:01.9]}
2... Bg7 {[%clk 0:03:03.3]} 3. Be3 {[%clk 0:03:01.6]} 3... c6 {[%clk 0:03:03.1]}
4. Nc3 {[%clk 0:02:57.2]} 4... d6 {[%clk 0:03:01.7]} 5. Nge2 {[%clk 0:02:48.7]}
5... Nf6 {[%clk 0:03:01.9]} 6. f3 {[%clk 0:02:48.7]} 6... O-O {[%clk 0:03:02.9]}
7. Qd2 {[%clk 0:02:38.3]} 7... e5 {[%clk 0:03:04.2]} 8. O-O-O {[%clk 0:02:36.9]}
8... Nbd7 {[%clk 0:02:54.3]} 9. Kb1 {[%clk 0:02:30.6]} 9... Qe7 {[%clk
0:02:44.7]} 10. g4 {[%clk 0:02:15.4]} 10... Nb6 {[%clk 0:02:43]} 11. Ng3 {[%clk
0:01:44.3]} 11... Nfd7 {[%clk 0:02:29.2]} 12. d5 {[%clk 0:01:32.9]} 12... c5
{[%clk 0:02:11.2]} 13. h4 {[%clk 0:01:30]} 13... f6 {[%clk 0:02:09]} 14. g5
{[%clk 0:01:08.4]} 14... f5 {[%clk 0:01:54.5]} 15. exf5 {[%clk 0:01:08.7]} 15...
gxf5 {[%clk 0:01:56.4]} 16. f4 {[%clk 0:01:09.7]} 16... exf4 {[%clk 0:01:56.4]}
17. Bxf4 {[%clk 0:01:10.2]} 17... Ne5 {[%clk 0:01:57.8]} 18. h5 {[%clk
0:00:51.4]} 18... Nbc4 {[%clk 0:01:14.2]} 19. Qc1 {[%clk 0:00:39.3]} 19... b5
{[%clk 0:01:06.8]} 20. g6 {[%clk 0:00:37.8]} 20... b4 {[%clk 0:00:48.1]} 21.
Nce2 {[%clk 0:00:08.6]} 21... Ng4 {[%clk 0:00:22.3]} 22. Nd4 {[%clk 0:00:04.9]}
22... Nxb2 {[%clk 0:00:20.9]} 23. Ne6 {[%clk 0:00:02.5]} 23... Bxe6 {[%clk
0:00:21.4]} 24. dxe6 {[%clk 0:00:03.2]} 24... Nxd1 {[%clk 0:00:22.6]} 0-1

[Event "*** Titled Tuesday 3|2 Blitz"]
[Site "Chess.com"]
[Date "2016.02.02"]
[Round "8"]
[White "oskariot"]
[Black "GianmarcoVaR"]
[Result "0-1"]
[WhiteElo "2312"]
[BlackElo "2250"]
[TimeControl "180+2"]
[EndTime "12:45:45 PST"]
[Termination "GianmarcoVaR won by resignation"]

1. e4 {[%clk 0:03:01.9]} 1... c6 {[%clk 0:02:57.2]} 2. d4 {[%clk 0:03:02.4]}
2... d5 {[%clk 0:02:57.8]} 3. e5 {[%clk 0:03:03.7]} 3... Bf5 {[%clk 0:02:58.3]}
4. Nf3 {[%clk 0:03:04.4]} 4... e6 {[%clk 0:02:59.5]} 5. Be2 {[%clk 0:03:04]}
5... Ne7 {[%clk 0:03:00.5]} 6. O-O {[%clk 0:03:04.3]} 6... h6 {[%clk 0:03:02]}
7. Nbd2 {[%clk 0:03:02.1]} 7... Nd7 {[%clk 0:03:03]} 8. Nb3 {[%clk 0:03:03.4]}
8... Qc7 {[%clk 0:03:03.7]} 9. a4 {[%clk 0:03:03.2]} 9... g5 {[%clk 0:02:45.2]}
10. Ne1 {[%clk 0:02:41.9]} 10... Bg7 {[%clk 0:02:27.7]} 11. Be3 {[%clk 0:02:36]}
11... O-O {[%clk 0:02:25.7]} 12. f4 {[%clk 0:02:33.7]} 12... f6 {[%clk
0:02:20.2]} 13. exf6 {[%clk 0:02:11.7]} 13... Bxf6 {[%clk 0:02:17.9]} 14. Bd3
{[%clk 0:02:07.2]} 14... g4 {[%clk 0:02:05.1]} 15. h3 {[%clk 0:01:56.8]} 15...
h5 {[%clk 0:02:01.9]} 16. hxg4 {[%clk 0:01:56.3]} 16... hxg4 {[%clk 0:02:02.5]}
17. Be2 {[%clk 0:01:57.4]} 17... g3 {[%clk 0:01:45]} 18. Bd3 {[%clk 0:01:35.8]}
18... Rf7 {[%clk 0:01:42.2]} 19. Qf3 {[%clk 0:01:18.8]} 19... Rg7 {[%clk
0:01:42.8]} 20. Bxf5 {[%clk 0:00:59.3]} 20... Nxf5 {[%clk 0:01:41.2]} 21. Nd3
{[%clk 0:00:59]} 21... Kf7 {[%clk 0:01:32.8]} 22. Qh5+ {[%clk 0:00:57]} 22...
Ke7 {[%clk 0:01:34]} 23. Rfe1 {[%clk 0:00:57.8]} 23... Qd8 {[%clk 0:01:09.3]}
24. Ne5 {[%clk 0:00:50.6]} 24... Bxe5 {[%clk 0:01:07.2]} 25. fxe5 {[%clk
0:00:50.6]} 25... Qg8 {[%clk 0:01:06.8]} 26. Nd2 {[%clk 0:00:38.3]} 26... Rf8
{[%clk 0:01:02.6]} 27. Nf3 {[%clk 0:00:33.3]} 27... Nxe3 {[%clk 0:00:58.5]} 28.
Rxe3 {[%clk 0:00:32.9]} 28... Rg4 {[%clk 0:00:59]} 29. Nh4 {[%clk 0:00:20.7]}
29... Qg7 {[%clk 0:00:45.7]} 30. Rf3 {[%clk 0:00:12.2]} 30... Rh8 {[%clk
0:00:46.5]} 31. Rf7+ {[%clk 0:00:13.1]} 31... Qxf7 {[%clk 0:00:47.3]} 32. Qxg4
{[%clk 0:00:14.6]} 32... Qf2+ {[%clk 0:00:46.1]} 33. Kh1 {[%clk 0:00:15.9]}
33... Kd8 {[%clk 0:00:29.6]} 34. Qg5+ {[%clk 0:00:16.8]} 34... Kc7 {[%clk
0:00:29.7]} 35. b4 {[%clk 0:00:15.3]} 35... Qxd4 {[%clk 0:00:29.9]} 0-1

[Event "*** Titled Tuesday 3|2 Blitz"]
[Site "Chess.com"]
[Date "2016.02.02"]
[Round "8"]
[White "Colombiano07"]
[Black "AndrewMcStone"]
[Result "1-0"]
[WhiteElo "2171"]
[BlackElo "2003"]
[TimeControl "180+2"]
[EndTime "12:45:53 PST"]
[Termination "Colombiano07 won by resignation"]

1. d4 {[%clk 0:03:01.9]} 1... Nf6 {[%clk 0:02:58.6]} 2. Bf4 {[%clk 0:02:28.4]}
2... d6 {[%clk 0:02:54.6]} 3. Nf3 {[%clk 0:02:27.4]} 3... g6 {[%clk 0:02:54.2]}
4. e3 {[%clk 0:02:01.2]} 4... Bg7 {[%clk 0:02:53.5]} 5. h3 {[%clk 0:02:02.1]}
5... O-O {[%clk 0:02:53.8]} 6. Be2 {[%clk 0:02:03.7]} 6... c5 {[%clk 0:02:54]}
7. O-O {[%clk 0:02:04.1]} 7... Qb6 {[%clk 0:02:41.2]} 8. Nbd2 {[%clk 0:01:35]}
8... Qxb2 {[%clk 0:02:08.4]} 9. Nc4 {[%clk 0:01:28.5]} 9... Qb4 {[%clk
0:01:57.1]} 10. Rb1 {[%clk 0:01:28.4]} 10... Qa4 {[%clk 0:01:54.9]} 11. c3
{[%clk 0:01:26.5]} 11... Qxd1 {[%clk 0:01:54.2]} 12. Rfxd1 {[%clk 0:01:28.4]}
12... Nd5 {[%clk 0:01:48.8]} 13. Rb3 {[%clk 0:01:27.1]} 13... Nxf4 {[%clk
0:01:47.7]} 14. exf4 {[%clk 0:01:28.3]} 14... cxd4 {[%clk 0:01:36.3]} 15. cxd4
{[%clk 0:01:28.2]} 15... b6 {[%clk 0:01:11.2]} 16. Ne3 {[%clk 0:01:20.6]} 16...
Bb7 {[%clk 0:01:08.2]} 17. Rc1 {[%clk 0:00:47.6]} 17... Nc6 {[%clk 0:00:45.4]}
18. d5 {[%clk 0:00:44.2]} 18... Na5 {[%clk 0:00:45.9]} 19. Rbb1 {[%clk
0:00:40.7]} 19... Rac8 {[%clk 0:00:44.8]} 20. Bb5 {[%clk 0:00:41.4]} 20... h6
{[%clk 0:00:30]} 21. g4 {[%clk 0:00:41.6]} 21... Bc3 {[%clk 0:00:20.9]} 22. Bc6
{[%clk 0:00:31.8]} 22... Bg7 {[%clk 0:00:18]} 23. Bxb7 {[%clk 0:00:32.2]} 23...
Nxb7 {[%clk 0:00:18.5]} 24. Kf1 {[%clk 0:00:33.3]} 24... Nc5 {[%clk 0:00:19]}
25. Ke2 {[%clk 0:00:34.7]} 25... Ne4 {[%clk 0:00:18.9]} 26. Nd1 {[%clk 0:00:24]}
26... Nc3+ {[%clk 0:00:17.8]} 27. Nxc3 {[%clk 0:00:25]} 27... Bxc3 {[%clk
0:00:18.5]} 28. Kd3 {[%clk 0:00:22.8]} 28... Bg7 {[%clk 0:00:19.1]} 29. a4
{[%clk 0:00:22.1]} 29... Rfd8 {[%clk 0:00:19.6]} 30. a5 {[%clk 0:00:22.8]} 30...
Rxc1 {[%clk 0:00:19.3]} 31. Rxc1 {[%clk 0:00:23.5]} 31... bxa5 {[%clk
0:00:20.7]} 32. Rc7 {[%clk 0:00:24.6]} 32... Ra8 {[%clk 0:00:18.7]} 33. Rxe7
{[%clk 0:00:22.7]} 33... Kf8 {[%clk 0:00:19.5]} 34. Rd7 {[%clk 0:00:23.4]} 34...
Bf6 {[%clk 0:00:19.9]} 35. Rxd6 {[%clk 0:00:24.4]} 35... a6 {[%clk 0:00:19.9]}
36. Rxf6 {[%clk 0:00:24.8]} 1-0

[Event "*** Titled Tuesday 3|2 Blitz"]
[Site "Chess.com"]
[Date "2016.02.02"]
[Round "8"]
[White "KyronGriffith"]
[Black "attack2mateU"]
[Result "1-0"]
[WhiteElo "2273"]
[BlackElo "2423"]
[TimeControl "180+2"]
[EndTime "12:46:24 PST"]
[Termination "KyronGriffith won by resignation"]

1. e4 {[%clk 0:03:01.9]} 1... c5 {[%clk 0:03:00.6]} 2. Nf3 {[%clk 0:03:02.9]}
2... d6 {[%clk 0:03:01.5]} 3. d4 {[%clk 0:03:04.2]} 3... cxd4 {[%clk 0:03:03.4]}
4. Nxd4 {[%clk 0:03:06.1]} 4... Nf6 {[%clk 0:03:05.2]} 5. Nc3 {[%clk 0:03:07.3]}
5... a6 {[%clk 0:03:06.2]} 6. Bg5 {[%clk 0:03:08.3]} 6... Nbd7 {[%clk
0:03:06.7]} 7. f4 {[%clk 0:03:07.9]} 7... Qc7 {[%clk 0:03:07.4]} 8. Qf3 {[%clk
0:03:07.2]} 8... h6 {[%clk 0:03:07.8]} 9. Bxf6 {[%clk 0:03:05.4]} 9... Nxf6
{[%clk 0:03:08.4]} 10. f5 {[%clk 0:03:06.9]} 10... Qc5 {[%clk 0:03:07.5]} 11.
O-O-O {[%clk 0:03:02.8]} 11... g5 {[%clk 0:03:08.1]} 12. Nb3 {[%clk 0:03:03.9]}
12... Qc7 {[%clk 0:03:06.3]} 13. Nd5 {[%clk 0:02:45.9]} 13... Nxd5 {[%clk
0:03:05.6]} 14. exd5 {[%clk 0:02:47.8]} 14... Bg7 {[%clk 0:03:06.1]} 15. Bd3
{[%clk 0:02:42.4]} 15... a5 {[%clk 0:02:42.9]} 16. a4 {[%clk 0:02:23.1]} 16...
Bd7 {[%clk 0:02:39.8]} 17. Qe4 {[%clk 0:02:16.3]} 17... Bf6 {[%clk 0:02:35.1]}
18. Rhe1 {[%clk 0:02:11.6]} 18... Kf8 {[%clk 0:02:31.4]} 19. Kb1 {[%clk
0:02:05.8]} 19... b5 {[%clk 0:02:07.2]} 20. axb5 {[%clk 0:01:46.8]} 20... a4
{[%clk 0:02:07.3]} 21. Nd4 {[%clk 0:01:47.2]} 21... a3 {[%clk 0:02:08.1]} 22.
Nc6 {[%clk 0:00:54.8]} 22... axb2 {[%clk 0:01:44.8]} 23. c4 {[%clk 0:00:55.2]}
23... Kg7 {[%clk 0:01:30]} 24. Kc2 {[%clk 0:00:49.5]} 24... Ra1 {[%clk 0:01:28]}
25. Kd2 {[%clk 0:00:42.9]} 25... Rha8 {[%clk 0:01:08.3]} 26. Ke2 {[%clk
0:00:39.8]} 26... Rxd1 {[%clk 0:00:59.8]} 27. Rxd1 {[%clk 0:00:38]} 27... Bxc6
{[%clk 0:00:46.7]} 28. dxc6 {[%clk 0:00:35]} 28... d5 {[%clk 0:00:44.3]} 29.
cxd5 {[%clk 0:00:26.8]} 29... Qxh2 {[%clk 0:00:19]} 30. b6 {[%clk 0:00:27.4]}
30... Qd6 {[%clk 0:00:13.4]} 31. Rb1 {[%clk 0:00:17.7]} 31... Rb8 {[%clk
0:00:14.3]} 32. b7 {[%clk 0:00:18]} 32... Re8 {[%clk 0:00:11]} 33. Kf1 {[%clk
0:00:16.6]} 33... Be5 {[%clk 0:00:10.6]} 34. Qe2 {[%clk 0:00:12.4]} 34... Qf6
{[%clk 0:00:06.6]} 35. Be4 {[%clk 0:00:11.6]} 35... Rd8 {[%clk 0:00:07.3]} 36.
Qc4 {[%clk 0:00:11.2]} 36... e6 {[%clk 0:00:08.6]} 37. c7 {[%clk 0:00:11.6]}
37... Bxc7 {[%clk 0:00:09.3]} 38. Qxc7 {[%clk 0:00:12.9]} 38... exf5 {[%clk
0:00:10.3]} 39. Bf3 {[%clk 0:00:12.1]} 39... g4 {[%clk 0:00:10.3]} 40. b8=Q
{[%clk 0:00:13.3]} 40... Rxb8 {[%clk 0:00:11.4]} 41. Qxb8 {[%clk 0:00:14.5]}
41... gxf3 {[%clk 0:00:13.3]} 42. Qxb2 {[%clk 0:00:15.7]} 42... fxg2+ {[%clk
0:00:14.3]} 43. Kxg2 {[%clk 0:00:16]} 1-0

[Event "*** Titled Tuesday 3|2 Blitz"]
[Site "Chess.com"]
[Date "2016.02.02"]
[Round "8"]
[White "nonsopolo1"]
[Black "Er_is_geen_hoop_meer"]
[Result "0-1"]
[WhiteElo "2150"]
[BlackElo "2308"]
[TimeControl "180+2"]
[EndTime "12:47:48 PST"]
[Termination "Er_is_geen_hoop_meer won by resignation"]

1. e4 {[%clk 0:03:01.9]} 1... c5 {[%clk 0:02:57.3]} 2. Nf3 {[%clk 0:02:53]} 2...
e6 {[%clk 0:02:56.7]} 3. d4 {[%clk 0:02:50.4]} 3... cxd4 {[%clk 0:02:58.6]} 4.
Nxd4 {[%clk 0:02:50.9]} 4... Nc6 {[%clk 0:02:59.9]} 5. Nc3 {[%clk 0:02:50.8]}
5... Qc7 {[%clk 0:02:38.9]} 6. Nxc6 {[%clk 0:02:50.8]} 6... bxc6 {[%clk
0:02:39.6]} 7. Bd3 {[%clk 0:02:50.8]} 7... e5 {[%clk 0:02:40.7]} 8. O-O {[%clk
0:02:51.2]} 8... Nf6 {[%clk 0:02:41.7]} 9. f4 {[%clk 0:02:50.2]} 9... Bc5+
{[%clk 0:02:42.7]} 10. Kh1 {[%clk 0:02:50.5]} 10... d6 {[%clk 0:02:41.3]} 11.
fxe5 {[%clk 0:02:49.5]} 11... dxe5 {[%clk 0:02:43.2]} 12. Bg5 {[%clk 0:02:47.7]}
12... Ng4 {[%clk 0:02:44.3]} 13. Qe1 {[%clk 0:02:47.8]} 13... f6 {[%clk
0:02:43.4]} 14. Bd2 {[%clk 0:02:44.7]} 14... Be6 {[%clk 0:02:43.8]} 15. h3
{[%clk 0:02:44.2]} 15... h5 {[%clk 0:02:45]} 16. Na4 {[%clk 0:02:40.5]} 16...
Bd6 {[%clk 0:02:30.8]} 17. Bb4 {[%clk 0:02:33.7]} 17... c5 {[%clk 0:02:29.7]}
18. Bb5+ {[%clk 0:02:33.4]} 18... Kf7 {[%clk 0:02:29.4]} 19. Bd2 {[%clk
0:02:27.6]} 19... c4 {[%clk 0:02:08.8]} 20. b3 {[%clk 0:02:18.5]} 20... cxb3
{[%clk 0:02:06.2]} 21. cxb3 {[%clk 0:02:17.9]} 21... Rab8 {[%clk 0:02:04.4]} 22.
Be2 {[%clk 0:02:15.9]} 22... Qb7 {[%clk 0:02:02.2]} 23. Bf3 {[%clk 0:02:12.9]}
23... Rbc8 {[%clk 0:01:50.1]} 24. Rc1 {[%clk 0:02:12.2]} 24... Rxc1 {[%clk
0:01:50.3]} 25. Qxc1 {[%clk 0:02:11.1]} 25... Rc8 {[%clk 0:01:52.2]} 26. Qd1
{[%clk 0:02:08.6]} 26... a6 {[%clk 0:01:47.3]} 27. hxg4 {[%clk 0:02:07.6]} 27...
hxg4 {[%clk 0:01:49.2]} 28. Bxg4 {[%clk 0:01:57.9]} 28... Rh8+ {[%clk
0:01:50.8]} 29. Kg1 {[%clk 0:01:56.2]} 29... Qxe4 {[%clk 0:01:40.2]} 30. Bxe6+
{[%clk 0:01:49.8]} 30... Kxe6 {[%clk 0:01:42.1]} 31. Qf3 {[%clk 0:01:42.4]}
31... Qxf3 {[%clk 0:01:35.1]} 32. Rxf3 {[%clk 0:01:35.3]} 32... e4 {[%clk
0:01:36.2]} 33. Rf1 {[%clk 0:01:31.9]} 33... f5 {[%clk 0:01:36.8]} 34. Bf4
{[%clk 0:01:27.3]} 34... Be7 {[%clk 0:01:35.4]} 35. Rc1 {[%clk 0:01:24]} 35...
g5 {[%clk 0:01:36.4]} 36. Bd2 {[%clk 0:01:20.5]} 36... Rd8 {[%clk 0:01:37]} 37.
Rc6+ {[%clk 0:01:17.6]} 37... Ke5 {[%clk 0:01:38.2]} 38. Bc3+ {[%clk 0:01:17]}
38... Kf4 {[%clk 0:01:39.7]} 39. Rxa6 {[%clk 0:01:08.9]} 39... g4 {[%clk
0:01:40.6]} 40. Kf2 {[%clk 0:01:05.9]} 40... Rd1 {[%clk 0:01:33.7]} 41. Ra5
{[%clk 0:00:54.3]} 41... g3+ {[%clk 0:01:30.6]} 42. Ke2 {[%clk 0:00:54.4]} 42...
Rg1 {[%clk 0:01:32.5]} 43. Be5+ {[%clk 0:00:46]} 43... Kg4 {[%clk 0:01:33.5]}
44. Ra7 {[%clk 0:00:42.2]} 44... Rxg2+ {[%clk 0:01:33.2]} 45. Kf1 {[%clk
0:00:42.6]} 45... Rf2+ {[%clk 0:01:34.4]} 46. Kg1 {[%clk 0:00:40.6]} 46... Bg5
{[%clk 0:01:35]} 47. Rg7 {[%clk 0:00:39.3]} 47... Rd2 {[%clk 0:01:29.4]} 48.
Bxg3 {[%clk 0:00:37.4]} 48... f4 {[%clk 0:01:29.5]} 49. Be1 {[%clk 0:00:31.5]}
49... Rd1 {[%clk 0:01:30.8]} 50. Kf1 {[%clk 0:00:31.9]} 50... e3 {[%clk
0:01:18]} 51. Nc3 {[%clk 0:00:31.9]} 51... Ra1 {[%clk 0:01:18.8]} 52. Ne4 {[%clk
0:00:32.1]} 52... f3 {[%clk 0:01:20.2]} 53. Rxg5+ {[%clk 0:00:27.8]} 53... Kf4
{[%clk 0:01:21.4]} 54. Rg8 {[%clk 0:00:20.6]} 54... Kxe4 {[%clk 0:01:22.6]} 55.
Re8+ {[%clk 0:00:20.2]} 55... Kd3 {[%clk 0:01:23.8]} 56. Rd8+ {[%clk 0:00:20.6]}
56... Ke4 {[%clk 0:01:24.7]} 57. Re8+ {[%clk 0:00:20.9]} 57... Kd3 {[%clk
0:01:26.1]} 58. Rd8+ {[%clk 0:00:21.5]} 58... Kc2 {[%clk 0:01:27]} 59. Rc8+
{[%clk 0:00:20.4]} 59... Kb2 {[%clk 0:01:27.4]} 60. Rc3 {[%clk 0:00:13.9]} 60...
Rxe1+ {[%clk 0:01:23.6]} 61. Kxe1 {[%clk 0:00:14]} 61... Kxc3 {[%clk 0:01:25.5]}
62. a4 {[%clk 0:00:12.2]} 62... Kd3 {[%clk 0:01:24.2]} 63. a5 {[%clk 0:00:12.2]}
63... f2+ {[%clk 0:01:25.6]} 64. Kf1 {[%clk 0:00:12.6]} 64... Kd2 {[%clk
0:01:27.5]} 65. a6 {[%clk 0:00:12.5]} 65... e2+ {[%clk 0:01:29.4]} 66. Kxf2
{[%clk 0:00:13.4]} 66... e1=Q+ {[%clk 0:01:31.3]} 67. Kf3 {[%clk 0:00:14.4]}
67... Qa1 {[%clk 0:01:32.9]} 0-1